bitfinex/quotes_BTCUSD_20250508
["timestamp","ask_amount","ask_price","bid_price","bid_amount"]
[1746735121393,0.04881204,101590.0,101580.0,0.99754828]
[1746735121628,0.00943995,101590.0,101580.0,0.74995725]
[1746735121800,0.0050985,101590.0,101580.0,1.47986098]
[1746735122060,0.0050985,101590.0,101580.0,1.48086098]
[1746735122230,0.02478401,101590.0,101580.0,1.12275926]
[1746735122467,0.02478401,101590.0,101580.0,1.13260303]
[1746735122661,0.01494111,101590.0,101580.0,1.12644793]
[1746735122966,0.02478401,101590.0,101580.0,1.12644793]
[1746735123252,0.02478401,101590.0,101580.0,1.11729037]
[1746735123713,0.23149746,101590.0,101580.0,0.69955607]
[1746735123909,0.23149746,101590.0,101580.0,0.402]
[1746735123910,0.22165456,101590.0,101580.0,0.402]
[1746735124140,0.24441156,101590.0,101580.0,0.002]
[1746735125642,0.24441156,101590.0,101580.0,0.001]
[1746735126538,0.0050985,101590.0,101580.0,0.46532487]
[1746735126750,0.002,101610.0,101600.0,0.22209281]
[1746735126964,0.002,101610.0,101600.0,0.70440165]
[1746735127165,0.01184077,101610.0,101600.0,1.07487526]
[1746735127368,0.23819516,101610.0,101600.0,0.4]
[1746735127576,0.25111343,101610.0,101600.0,0.4]
[1746735128920,0.25111343,101610.0,101600.0,0.59985039]
[1746735129343,0.23501343,101610.0,101600.0,0.59985039]
[1746735129541,0.23501343,101610.0,101600.0,0.59685039]
[1746735129687,0.23701343,101610.0,101600.0,0.19685039]
[1746735129894,0.25221343,101610.0,101600.0,0.19685039]
[1746735130343,0.25221343,101610.0,101600.0,0.59685039]
[1746735131123,0.25221343,101610.0,101600.0,0.19685039]
[1746735132102,0.00984164,101600.0,101590.0,0.95495445]
[1746735132307,0.01968377,101600.0,101590.0,1.06546456]
[1746735132744,0.03936764,101600.0,101590.0,1.06546456]
[1746735133531,0.01968348,101600.0,101590.0,1.07530766]
[1746735134163,0.02952551,101600.0,101590.0,1.06546456]
[1746735134400,0.02952541,101600.0,101590.0,1.06546456]
[1746735134522,0.01968348,101600.0,101590.0,1.06546456]
[1746735134727,0.01968348,101600.0,101590.0,1.06646456]
[1746735134929,0.01968348,101600.0,101590.0,1.05662137]
[1746735135123,0.01968348,101600.0,101590.0,1.06646456]
[1746735135327,0.04838756,101600.0,101590.0,0.59786977]
[1746735135612,0.26023795,101600.0,101590.0,0.59786977]
[1746735135781,0.04592599,101600.0,101590.0,0.59786977]
[1746735136216,0.05576831,101600.0,101590.0,0.59786977]
[1746735136428,0.24277696,101600.0,101590.0,0.59786977]
[1746735136576,0.04592657,101600.0,101590.0,0.59786977]
[1746735136771,0.04838728,101600.0,101590.0,0.59786977]
[1746735137630,0.04838728,101600.0,101590.0,0.59745056]
[1746735137840,0.04838728,101600.0,101590.0,0.6036047]
[1746735138042,0.05822979,101600.0,101590.0,0.6036047]
[1746735138250,0.04838728,101600.0,101590.0,0.6036047]
[1746735138453,0.0582297,101600.0,101590.0,0.20402391]
[1746735138657,0.25508009,101600.0,101590.0,0.20402391]
[1746735138816,0.07226899,101600.0,101590.0,0.20402391]
[1746735139015,0.0747297,101600.0,101590.0,0.60402391]
[1746735139453,0.27158057,101600.0,101590.0,0.60402391]
[1746735139657,0.24943532,101600.0,101590.0,0.40715414]
[1746735139866,0.24943532,101600.0,101590.0,0.60402391]
[1746735140274,0.24943532,101600.0,101590.0,0.20402391]
[1746735140626,0.24943532,101600.0,101590.0,0.20302391]
[1746735141031,0.25143532,101600.0,101590.0,0.20302391]
[1746735141474,0.25143532,101600.0,101590.0,0.19686977]
[1746735141674,0.25143532,101600.0,101590.0,0.20302429]
[1746735141856,0.25143532,101600.0,101590.0,0.55128224]
[1746735142778,0.25143532,101600.0,101590.0,0.20302429]
[1746735143388,0.05458493,101600.0,101590.0,0.20302429]
[1746735143590,0.25143532,101600.0,101590.0,0.20302429]
[1746735144286,0.25143532,101600.0,101590.0,0.55128224]
[1746735144502,0.25143532,101600.0,101590.0,0.20302429]
[1746735144949,0.25143532,101600.0,101590.0,0.21214876]
[1746735145721,0.25143532,101600.0,101590.0,0.56040671]
[1746735145927,0.25143532,101600.0,101590.0,0.56040662]
[1746735146736,0.25143532,101600.0,101590.0,0.96040662]
[1746735146936,0.25143532,101600.0,101590.0,0.61214867]
[1746735147512,0.25143532,101600.0,101590.0,0.4152789]
[1746735147718,0.25143532,101600.0,101590.0,0.61214867]
[1746735147971,0.25143532,101600.0,101590.0,0.60599424]
[1746735148133,0.2415929,101600.0,101590.0,0.61214867]
[1746735148344,0.2415929,101600.0,101590.0,0.4152789]
[1746735148540,1.03051777,101600.0,101590.0,0.0152789]
[1746735148936,0.68225982,101600.0,101590.0,0.00912447]
[1746735149207,0.68225982,101600.0,101590.0,0.01527959]
[1746735149812,0.68225982,101600.0,101590.0,0.00912447]
[1746735153838,0.68225982,101600.0,101590.0,0.01527959]
[1746735154473,0.68225982,101600.0,101590.0,0.00912447]
[1746735155125,0.01968783,101580.0,101570.0,0.98819863]
[1746735155422,0.02953219,101580.0,101570.0,0.99813659]
[1746735156139,0.01968783,101580.0,101570.0,0.99813659]
[1746735156335,0.01968783,101580.0,101570.0,1.00313659]
[1746735156545,0.02953209,101580.0,101570.0,0.99329156]
[1746735156975,0.0156,101590.0,101570.0,1.10905722]
[1746735157184,0.2216929,101600.0,101590.0,0.19686977]
[1746735157385,0.2216929,101600.0,101590.0,0.34825795]
[1746735157670,0.01968619,101590.0,101580.0,0.56483562]
[1746735157872,0.03937286,101590.0,101580.0,0.75810211]
[1746735158042,0.04921567,101590.0,101580.0,0.96483562]
[1746735158246,0.02952881,101590.0,101580.0,0.98452345]
[1746735158571,0.02952881,101590.0,101580.0,0.98987968]
[1746735158774,0.0393721,101590.0,101580.0,0.99972355]
[1746735158949,0.02952881,101590.0,101580.0,0.99972355]
[1746735159147,0.0393721,101590.0,101580.0,0.99972365]
[1746735159550,0.0393721,101590.0,101580.0,1.00956752]
[1746735159762,0.0393721,101590.0,101580.0,0.99972316]
[1746735159959,0.04921548,101590.0,101580.0,0.98003532]
[1746735160322,0.04921548,101590.0,101580.0,0.98003571]
[1746735160529,0.04921548,101590.0,101580.0,0.99087977]
[1746735160737,0.23624244,101590.0,101580.0,0.61757796]
[1746735160942,0.23624244,101590.0,101580.0,0.97568017]
[1746735161355,0.23624244,101590.0,101580.0,0.62742222]
[1746735161559,0.22639954,101590.0,101580.0,0.95599155]
[1746735161765,0.22639954,101590.0,101580.0,0.97568017]
[1746735161984,0.22639954,101590.0,101580.0,0.96583591]
[1746735163851,0.22639954,101590.0,101580.0,0.401]
[1746735163983,0.23265644,101590.0,101580.0,0.59788915]
[1746735164336,0.23265644,101590.0,101580.0,0.95599155]
[1746735165511,0.22288207,101590.0,101580.0,0.74925795]
[1746735165828,0.22288207,101590.0,101580.0,0.9461471]
[1746735166716,0.22281325,101590.0,101580.0,0.95592273]
[1746735166921,0.22281325,101590.0,101580.0,0.94607828]
[1746735167324,0.21296977,101590.0,101580.0,0.94607828]
[1746735167527,0.22816977,101590.0,101580.0,0.94607828]
[1746735168086,0.22816977,101590.0,101580.0,0.59782033]
[1746735170567,0.22816977,101590.0,101580.0,0.60695553]
[1746735170763,0.22816977,101590.0,101580.0,0.41006638]
[1746735171174,0.22816977,101590.0,101580.0,0.75832433]
[1746735171375,0.22816977,101590.0,101580.0,0.96136806]
[1746735172535,0.22816977,101590.0,101580.0,0.76447891]
[1746735173311,0.22816977,101590.0,101580.0,0.96136806]
[1746735173679,0.21296977,101590.0,101580.0,0.84210066]
[1746735173884,0.21296977,101590.0,101580.0,0.84896498]
[1746735174718,0.0161,101590.0,101580.0,1.08779998]
[1746735174931,0.24249954,101590.0,101580.0,1.08779998]
[1746735175130,0.25234235,101590.0,101580.0,1.08779998]
[1746735175779,0.26864235,101590.0,101580.0,0.77199731]
[1746735175940,0.24895644,101590.0,101580.0,0.96888646]
[1746735176755,0.24895644,101590.0,101580.0,0.77199731]
[1746735176958,0.24895644,101590.0,101580.0,0.42308528]
[1746735177160,0.24895644,101590.0,101580.0,0.96888646]
[1746735177539,0.24902746,101590.0,101580.0,0.96888646]
[1746735177753,0.23918427,101590.0,101580.0,0.96888646]
[1746735177953,0.23918427,101590.0,101580.0,0.61997443]
[1746735178651,0.23911325,101590.0,101580.0,0.96881544]
[1746735178908,0.23911325,101590.0,101580.0,0.61990341]
[1746735179306,0.23911325,101590.0,101580.0,0.61990307]
[1746735180715,0.23911325,101590.0,101580.0,0.42301392]
[1746735181125,0.23911325,101590.0,101580.0,0.02315376]
[1746735183985,0.23911325,101590.0,101580.0,0.22004291]
[1746735184182,0.23911325,101590.0,101580.0,0.56895494]
[1746735184385,0.22281325,101590.0,101580.0,0.56895494]
[1746735184584,0.23265635,101590.0,101580.0,0.22004291]
[1746735184799,0.23265635,101590.0,101580.0,0.56895494]
[1746735187060,0.24249925,101590.0,101580.0,0.56895494]
[1746735187500,0.23265635,101590.0,101580.0,0.56895494]
[1746735187918,0.23265635,101590.0,101580.0,0.62004291]
[1746735188124,0.22281316,101590.0,101580.0,0.62004291]
[1746735188330,0.22281316,101590.0,101580.0,0.96895494]
[1746735188553,0.22281316,101590.0,101580.0,0.62004291]
[1746735188772,0.21296977,101590.0,101580.0,0.96895494]
[1746735190491,0.21296977,101590.0,101580.0,0.62004291]
[1746735190703,0.21296977,101590.0,101580.0,0.96895494]
[1746735190849,0.21303346,101590.0,101580.0,0.96895494]
[1746735191256,0.21303346,101590.0,101580.0,0.62004291]
[1746735191452,0.21303346,101590.0,101580.0,0.96895494]
[1746735191853,0.21296977,101590.0,101580.0,0.96889125]
[1746735193290,0.21296977,101590.0,101580.0,0.61997922]
[1746735193491,0.22916977,101590.0,101580.0,0.61997922]
[1746735195880,0.22916977,101590.0,101580.0,0.84899481]
[1746735196199,0.22916977,101590.0,101580.0,0.02309007]
[1746735197932,0.22916977,101590.0,101580.0,0.44899481]
[1746735199217,0.22916977,101590.0,101580.0,0.25210566]
[1746735199398,0.22916977,101590.0,101580.0,0.02309007]
[1746735202876,0.22916977,101590.0,101580.0,0.21997922]
[1746735203618,0.22916977,101590.0,101580.0,0.61997922]
[1746735206508,0.22916977,101590.0,101580.0,0.84899481]
[1746735207507,0.22916977,101590.0,101580.0,0.61997922]
[1746735208173,0.22916977,101590.0,101580.0,0.42309007]
[1746735210759,0.22916977,101590.0,101580.0,0.02309007]
[1746735211186,0.22916977,101590.0,101580.0,0.42309007]
[1746735211392,0.22916977,101590.0,101580.0,0.61997922]
[1746735211751,0.22916977,101590.0,101580.0,0.42309007]
[1746735212924,0.22916977,101590.0,101580.0,0.61997922]
[1746735213306,0.22916977,101590.0,101580.0,0.61981404]
[1746735214153,0.22916977,101590.0,101580.0,0.21981404]
[1746735214735,0.22916977,101590.0,101580.0,0.61981404]
[1746735215431,0.22916977,101590.0,101580.0,0.84882963]
[1746735215663,0.22916977,101590.0,101580.0,0.42292489]
[1746735216942,0.22916977,101590.0,101580.0,0.61981404]
[1746735218698,0.22916977,101590.0,101580.0,0.21981404]
[1746735219323,0.22916977,101590.0,101580.0,0.61981404]
[1746735220323,0.32983669,101590.0,101580.0,0.02292489]
[1746735220939,0.98838919,101590.0,101580.0,0.02292489]
[1746735221161,0.92339313,101590.0,101580.0,0.02292489]
[1746735221377,0.95106598,101590.0,101580.0,0.01606057]
[1746735221579,0.95858716,101590.0,101580.0,0.01606057]
[1746735221830,0.95858716,101590.0,101580.0,0.01609045]
[1746735222224,0.95858716,101590.0,101580.0,0.00615634]
[1746735222497,0.57933341,101580.0,101570.0,0.00315293]
[1746735222693,0.90901592,101580.0,101570.0,0.00315293]
[1746735222902,0.90901592,101580.0,101570.0,0.00930923]
[1746735223350,0.90901592,101580.0,101570.0,0.01846598]
[1746735223545,0.23212041,101560.0,101550.0,0.22901559]
[1746735223762,0.23212041,101560.0,101550.0,0.20727973]
[1746735225427,0.23312041,101560.0,101550.0,0.21327973]
[1746735225765,0.23312041,101560.0,101550.0,0.61327973]
[1746735225965,0.23312041,101560.0,101550.0,0.41633566]
[1746735226183,0.23312041,101560.0,101550.0,0.61328297]
[1746735227250,0.23312041,101560.0,101550.0,0.41633566]
[1746735227453,0.23312041,101560.0,101550.0,0.61328297]
[1746735228774,0.23312041,101560.0,101550.0,0.19694731]
[1746735229346,0.23312041,101560.0,101550.0,0.207102]
[1746735229544,0.23312041,101560.0,101550.0,0.607102]
[1746735230130,0.24822041,101560.0,101550.0,0.607102]
[1746735231135,0.23837431,101560.0,101550.0,0.41015469]
[1746735231336,0.23837431,101560.0,101550.0,0.607102]
[1746735231545,0.23837431,101560.0,101550.0,0.207102]
[1746735234134,0.23837431,101560.0,101550.0,0.607102]
[1746735235732,0.23837431,101560.0,101550.0,0.61325824]
[1746735236165,0.23837431,101560.0,101550.0,0.62240112]
[1746735237187,0.23837431,101560.0,101550.0,0.22240112]
[1746735237576,0.23837431,101560.0,101550.0,0.62240112]
[1746735239097,0.23837431,101560.0,101550.0,0.61224643]
[1746735239933,0.24087431,101560.0,101550.0,0.61224643]
[1746735240287,0.24087431,101560.0,101550.0,0.19694731]
[1746735240480,0.01969394,101550.0,101540.0,0.60349536]
[1746735240693,0.02954092,101550.0,101540.0,0.59364771]
[1746735241108,0.04923506,101550.0,101540.0,0.59364771]
[1746735241434,0.0393878,101550.0,101540.0,1.00349536]
[1746735241642,0.0403878,101550.0,101540.0,1.00949536]
[1746735242139,0.0403878,101550.0,101540.0,1.00998945]
[1746735243159,0.05023506,101550.0,101540.0,1.00998945]
[1746735243567,0.001,101550.0,101540.0,1.13420402]
[1746735243780,0.02069347,101550.0,101540.0,1.13420402]
[1746735243990,0.02069347,101550.0,101540.0,1.24327081]
[1746735244638,0.02069337,101550.0,101540.0,1.24327081]
[1746735244848,0.01084659,101550.0,101540.0,1.24327081]
[1746735245058,0.02069337,101550.0,101540.0,1.24327081]
[1746735245493,0.01084659,101550.0,101540.0,1.24327081]
[1746735245711,0.02069337,101550.0,101540.0,1.24327081]
[1746735248489,0.02069337,101550.0,101540.0,1.22957081]
[1746735249167,0.03054034,101550.0,101540.0,1.22957081]
[1746735249598,0.02069337,101550.0,101540.0,1.22957081]
[1746735250221,0.03054034,101550.0,101540.0,1.22957081]
[1746735250456,0.02069337,101550.0,101540.0,1.22957081]
[1746735250946,0.03054034,101550.0,101540.0,1.22957081]
[1746735251989,0.02069337,101550.0,101540.0,1.22957081]
[1746735252192,0.03054025,101550.0,101540.0,1.22957081]
[1746735252602,0.03054025,101550.0,101540.0,1.23572687]
[1746735252945,0.03054025,101550.0,101540.0,1.24489175]
[1746735253169,0.04038732,101550.0,101540.0,0.75709324]
[1746735253348,0.24268843,101550.0,101540.0,0.58991743]
[1746735253487,0.05558838,101550.0,101540.0,0.59976518]
[1746735254115,0.25253617,101550.0,101540.0,0.59976537]
[1746735254320,0.25253617,101550.0,101540.0,0.60961322]
[1746735255093,0.05558886,101550.0,101540.0,0.60961264]
[1746735255294,0.25253617,101550.0,101540.0,0.34109343]
[1746735255494,0.25253617,101550.0,101540.0,0.03366268]
[1746735255495,0.24914193,101550.0,101540.0,0.03366268]
[1746735255922,0.24914193,101550.0,101540.0,0.43366268]
[1746735256132,0.24814193,101550.0,101540.0,0.42766268]
[1746735256539,0.24914193,101550.0,101540.0,0.43166268]
[1746735257703,0.24914193,101550.0,101540.0,0.02132094]
[1746735258555,0.57893648,101550.0,101540.0,0.02132094]
[1746735258781,0.34980885,101550.0,101540.0,0.02132094]
[1746735258991,0.34980885,101550.0,101540.0,0.01516488]
[1746735259199,0.34880885,101550.0,101540.0,0.01116488]
[1746735259586,0.34880885,101550.0,101540.0,0.01416488]
[1746735259924,0.34880885,101550.0,101540.0,0.01116488]
[1746735260697,0.24814193,101550.0,101540.0,0.24029251]
[1746735261108,0.24814193,101550.0,101540.0,0.01116488]
[1746735261322,0.24814193,101550.0,101540.0,0.24029251]
[1746735261524,0.24814193,101550.0,101540.0,0.01116488]
[1746735262547,0.24814193,101550.0,101540.0,0.01732094]
[1746735263397,0.24814193,101550.0,101540.0,0.01116488]
[1746735264248,0.25064193,101550.0,101540.0,0.01116488]
[1746735267214,0.25064193,101550.0,101540.0,0.24029251]
[1746735267391,0.25064193,101550.0,101540.0,0.01116488]
[1746735268006,0.25064193,101550.0,101540.0,0.01732094]
[1746735270991,0.25064193,101550.0,101540.0,0.01116488]
[1746735272210,0.25064193,101550.0,101540.0,0.00971178]
[1746735273088,0.25064193,101550.0,101540.0,0.01586897]
[1746735277116,0.25064193,101550.0,101540.0,0.00971178]
[1746735278029,0.25064193,101550.0,101540.0,0.01586898]
[1746735281009,0.25064193,101550.0,101540.0,0.00971178]
[1746735281637,0.35130885,101550.0,101540.0,0.00971178]
[1746735283684,1.2717975,101550.0,101540.0,0.00971178]
[1746735283889,1.14042987,101550.0,101540.0,0.00971178]
[1746735284080,1.14042987,101550.0,101540.0,0.0005469]
[1746735284484,1.16807706,101550.0,101540.0,0.0005469]
[1746735285188,1.17507706,101550.0,101540.0,0.0015469]
[1746735285405,2.23767161,101550.0,101540.0,0.0015469]
[1746735285571,2.28767161,101550.0,101540.0,0.0015469]
[1746735286150,2.20912858,101550.0,101540.0,0.0015469]
[1746735286550,1.88925403,101550.0,101540.0,0.0015469]
[1746735287349,2.11838166,101550.0,101540.0,0.0015469]
[1746735287539,1.88925403,101550.0,101540.0,0.0015469]
[1746735287733,1.90358072,101550.0,101540.0,0.0015469]
[1746735289601,1.87593353,101550.0,101540.0,0.0015469]
[1746735289803,1.97660045,101550.0,101540.0,0.0015469]
[1746735290108,2.00421141,101550.0,101540.0,0.0015469]
[1746735291358,2.23333904,101550.0,101540.0,0.0035469]
[1746735293450,2.22333904,101550.0,101540.0,0.0035469]
[1746735293833,1.43053904,101550.0,101540.0,0.0035469]
[1746735294056,1.53053904,101550.0,101540.0,0.0035469]
[1746735294406,1.50292808,101550.0,101540.0,0.0035469]
[1746735294608,1.53051679,101550.0,101540.0,0.0035469]
[1746735295187,1.5161901,101550.0,101540.0,0.0035469]
[1746735295715,1.48860139,101550.0,101540.0,0.0035469]
[1746735300363,1.25947376,101550.0,101540.0,0.0035469]
[1746735300511,1.48860139,101550.0,101540.0,0.0035469]
[1746735300901,1.25947376,101550.0,101540.0,0.0035469]
[1746735301323,1.16179376,101550.0,101540.0,0.0035469]
[1746735301535,0.83899921,101550.0,101540.0,0.0035469]
[1746735301737,0.2370557,101540.0,101530.0,0.82668242]
[1746735301913,0.36705758,101540.0,101530.0,0.82668242]
[1746735302731,1.28898521,101540.0,101530.0,0.82668242]
[1746735302955,1.28898521,101540.0,101530.0,0.82682417]
[1746735303392,1.52811284,101540.0,101530.0,0.82682417]
[1746735303597,2.08724047,101540.0,101530.0,0.82682417]
[1746735303797,1.69992047,101540.0,101530.0,0.82782417]
[1746735304057,1.69992047,101540.0,101500.0,0.002]
[1746735304058,0.57126758,101510.0,101500.0,0.002]
[1746735304266,1.46296976,101510.0,101500.0,0.002]
[1746735305495,0.25911216,101470.0,101460.0,0.002]
[1746735305723,0.81137908,101470.0,101460.0,0.002]
[1746735305957,1.16146541,101470.0,101460.0,0.002]
[1746735306628,0.81137908,101470.0,101460.0,0.002]
[1746735306836,0.81142612,101470.0,101460.0,0.002]
[1746735307040,1.16151245,101470.0,101460.0,0.002]
[1746735307406,1.26217937,101470.0,101460.0,0.005]
[1746735307843,1.2818563,101470.0,101460.0,0.005]
[1746735308059,0.83110305,101470.0,101460.0,0.005]
[1746735308247,1.18118938,101470.0,101460.0,0.005]
[1746735308792,1.19950492,101470.0,101460.0,0.005]
[1746735309005,1.54404577,101470.0,101460.0,0.005]
[1746735309209,2.09479902,101470.0,101460.0,0.005]
[1746735309410,0.67139574,101450.0,101440.0,0.002]
[1746735309612,1.1599544,101450.0,101440.0,0.002]
[1746735309815,1.17430475,101450.0,101440.0,0.002]
[1746735310012,0.66155957,101440.0,101430.0,0.0153237]
[1746735310214,0.66155957,101440.0,101420.0,0.002]
[1746735310215,0.66157999,101430.0,101420.0,0.002]
[1746735310406,1.09533324,101430.0,101420.0,0.002]
[1746735311035,1.09503435,101430.0,101420.0,0.002]
[1746735311273,0.70494802,101430.0,101420.0,0.002]
[1746735311511,0.80159503,101430.0,101420.0,0.004]
[1746735311958,0.80459503,101430.0,101420.0,0.004]
[1746735312138,0.66499503,101430.0,101420.0,0.004]
[1746735313360,1.15365695,101430.0,101420.0,0.004]
[1746735313515,1.49374328,101430.0,101420.0,0.004]
[1746735313725,1.59374328,101430.0,101420.0,0.004]
[1746735313923,0.60318128,101410.0,101400.0,0.002]
[1746735314139,1.50897453,101410.0,101400.0,0.002]
[1746735314342,1.35603512,101410.0,101400.0,0.002]
[1746735314540,1.70612145,101410.0,101400.0,0.002]
[1746735314770,1.25955512,101410.0,101400.0,0.002]
[1746735315040,1.0688882,101410.0,101400.0,0.002]
[1746735315569,1.01264735,101410.0,101400.0,0.002]
[1746735315778,0.67464735,101410.0,101400.0,0.35208633]
[1746735315981,0.57398043,101410.0,101400.0,0.35208633]
[1746735316158,0.57398043,101410.0,101400.0,0.70217266]
[1746735316396,0.57398043,101410.0,101400.0,0.35208633]
[1746735316603,0.56411996,101410.0,101400.0,0.35208633]
[1746735316815,0.37090047,101410.0,101400.0,0.93221131]
[1746735317014,0.60756204,101410.0,101400.0,0.93221131]
[1746735317217,0.58384139,101410.0,101400.0,0.93221131]
[1746735317371,0.58384139,101410.0,101400.0,0.58212498]
[1746735317581,0.57298082,101410.0,101400.0,0.38488633]
[1746735317776,0.57298082,101410.0,101400.0,0.0348]
[1746735317990,0.57198082,101410.0,101400.0,0.402]
[1746735318193,0.57298082,101410.0,101400.0,0.402]
[1746735318391,0.57298082,101410.0,101400.0,0.89573425]
[1746735318392,0.57398082,101410.0,101400.0,0.89573425]
[1746735318596,0.57398082,101410.0,101400.0,0.91203425]
[1746735318760,0.57398082,101410.0,101400.0,1.1092729]
[1746735318967,0.57398082,101410.0,101400.0,0.23653865]
[1746735319211,0.57398082,101410.0,101400.0,0.51203425]
[1746735319415,0.37676103,101410.0,101400.0,1.11913473]
[1746735319625,0.36690008,101410.0,101400.0,1.12899627]
[1746735319827,0.002,101410.0,101400.0,2.05225869]
[1746735320036,0.00990534,101430.0,101420.0,0.22677854]
[1746735320234,0.21694468,101430.0,101420.0,0.70133401]
[1746735320507,0.20708615,101430.0,101420.0,0.50413425]
[1746735320655,0.20707427,101420.0,101410.0,0.50423425]
[1746735320854,0.20707427,101420.0,101410.0,0.70145345]
[1746735321117,0.20707427,101420.0,101410.0,0.50423425]
[1746735321501,0.20707427,101420.0,101410.0,0.47273425]
[1746735321994,0.21694062,101410.0,101400.0,0.003]
[1746735322200,0.31760754,101410.0,101400.0,0.003]
[1746735322623,0.65760754,101410.0,101400.0,0.003]
[1746735323221,0.31760754,101410.0,101400.0,0.003]
[1746735324120,0.31960754,101410.0,101400.0,0.011]
[1746735324348,0.01086037,101410.0,101400.0,0.23433865]
[1746735324556,0.2278008,101410.0,101400.0,0.7070729]
[1746735324747,0.22680139,101410.0,101400.0,0.7070729]
[1746735324975,0.21794082,101410.0,101400.0,0.7070729]
[1746735325181,0.01086037,101410.0,101400.0,0.7070729]
[1746735325382,0.0305816,101410.0,101400.0,0.71693483]
[1746735325599,0.22780129,101410.0,101400.0,0.7060729]
[1746735325804,0.22780129,101410.0,101400.0,0.7090729]
[1746735326309,0.001,101410.0,101400.0,1.292336]
[1746735326471,0.00985959,101420.0,101410.0,0.24803008]
[1746735326698,0.0098593,101420.0,101410.0,0.7306249]
[1746735326875,0.02957839,101420.0,101410.0,0.7306249]
[1746735327281,0.03943828,101420.0,101410.0,0.7306249]
[1746735327450,0.03943828,101420.0,101410.0,1.14048537]
[1746735327645,0.03943828,101420.0,101410.0,1.1306249]
[1746735327873,0.04443828,101420.0,101410.0,1.11190357]
[1746735328071,0.22191963,101420.0,101410.0,0.90483425]
[1746735328272,0.02471948,101420.0,101410.0,1.11191431]
[1746735328491,0.02471948,101420.0,101410.0,0.72177497]
[1746735328817,0.005,101420.0,101410.0,1.07163554]
[1746735328986,0.005,101420.0,101410.0,1.10942848]
[1746735329212,0.0345784,101420.0,101410.0,1.58216273]
[1746735329559,0.0345784,101420.0,101410.0,1.57230246]
[1746735329768,0.0305784,101420.0,101410.0,1.5885231]
[1746735330003,0.0315784,101420.0,101410.0,1.59468755]
[1746735330205,0.0305784,101420.0,101410.0,1.59468755]
[1746735330409,0.04043819,101420.0,101410.0,1.57996691]
[1746735330653,0.04043819,101420.0,101410.0,1.5935232]
[1746735330932,0.04043819,101420.0,101410.0,1.59352271]
[1746735331144,0.04043819,101420.0,101410.0,1.58366244]
[1746735331656,0.05029817,101420.0,101410.0,1.58366244]
[1746735331862,0.24651785,101420.0,101410.0,1.09120774]
[1746735332071,0.04931809,101420.0,101410.0,1.58366303]
[1746735332272,0.03945811,101420.0,101410.0,1.5935233]
[1746735332892,0.049318,101420.0,101410.0,1.1935234]
[1746735333068,0.02959832,101420.0,101410.0,0.72078846]
[1746735333411,0.23665797,101420.0,101410.0,1.55408133]
[1746735333583,0.22679847,101420.0,101410.0,0.005]
[1746735334628,0.22679847,101420.0,101410.0,0.47773425]
[1746735335633,0.22679847,101420.0,101410.0,0.005]
[1746735337775,0.22679847,101420.0,101410.0,0.01419037]
[1746735338019,0.22679847,101420.0,101410.0,0.48692462]
[1746735338440,0.22679847,101420.0,101410.0,0.01419037]
[1746735338640,0.22679847,101420.0,101410.0,0.48692462]
[1746735339453,0.02959871,101420.0,101410.0,0.68414382]
[1746735339696,0.00987913,101420.0,101410.0,0.84609244]
[1746735339905,0.02959793,101420.0,101410.0,1.18609244]
[1746735340125,0.03945762,101420.0,101410.0,1.19225722]
[1746735340565,0.02959793,101420.0,101410.0,1.18239695]
[1746735340746,0.04931731,101420.0,101410.0,1.19225732]
[1746735340954,0.03945752,101420.0,101410.0,1.20211759]
[1746735341148,0.04931731,101420.0,101410.0,1.20211759]
[1746735341381,0.04931721,101420.0,101410.0,1.20211759]
[1746735341838,0.02959802,101420.0,101410.0,1.60211759]
[1746735342014,0.02959793,101420.0,101410.0,1.60211759]
[1746735342218,0.01973843,101420.0,101410.0,1.60211759]
[1746735342678,0.02959793,101420.0,101410.0,1.60211759]
[1746735342881,0.24651727,101420.0,101410.0,1.08994127]
[1746735343081,0.23665845,101420.0,101410.0,1.4456086]
[1746735343281,0.22679876,101420.0,101410.0,1.44016956]
[1746735343489,0.22679876,101420.0,101410.0,1.45003032]
[1746735343689,0.22679876,101420.0,101410.0,1.45989098]
[1746735343892,0.01973872,101420.0,101410.0,1.50065135]
[1746735344177,0.01973843,101420.0,101410.0,1.61117854]
[1746735345221,0.02959784,101420.0,101410.0,1.61117854]
[1746735345422,0.02959764,101420.0,101410.0,1.61117854]
[1746735345685,0.03945714,101420.0,101410.0,1.61117854]
[1746735346152,0.05917662,101420.0,101410.0,1.12858422]
[1746735346374,0.05917662,101420.0,101410.0,1.60131837]
[1746735346705,0.04931673,101420.0,101410.0,1.5914579]
[1746735346937,0.05917652,101420.0,101410.0,1.587128]
[1746735347165,0.05917652,101420.0,101410.0,1.59698837]
[1746735347390,0.05917652,101420.0,101410.0,1.57726704]
[1746735347627,0.05917652,101420.0,101410.0,1.57726714]
[1746735347824,0.05917652,101420.0,101410.0,1.44842258]
[1746735348282,0.23665777,101420.0,101410.0,1.41884059]
[1746735348502,0.22679827,101420.0,101410.0,1.28727367]
[1746735348709,0.21693868,101420.0,101410.0,1.28727367]
[1746735349316,0.21693868,101420.0,101410.0,1.29713463]
[1746735349868,0.21693868,101420.0,101410.0,1.28727367]
[1746735350071,0.20707889,101420.0,101410.0,1.28727367]
[1746735350275,0.20707889,101420.0,101410.0,0.9372192]
[1746735350466,0.20707889,101420.0,101410.0,1.28727367]
[1746735351084,0.20707889,101420.0,101410.0,1.29713463]
[1746735351284,0.20451564,101420.0,101410.0,0.9372192]
[1746735351581,0.20451564,101420.0,101410.0,0.69005447]
[1746735351783,0.20451564,101420.0,101410.0,0.68995865]
[1746735352045,0.20451564,101420.0,101410.0,1.08995865]
[1746735352835,0.20451564,101420.0,101410.0,1.28717785]
[1746735353007,0.20451564,101420.0,101410.0,1.08995865]
[1746735353905,0.20451564,101420.0,101410.0,1.28717785]
[1746735355016,0.20451564,101420.0,101410.0,1.08995865]
[1746735355909,0.02703468,101420.0,101410.0,1.34715955]
[1746735356156,0.04675406,101420.0,101410.0,1.33729928]
[1746735356370,0.05661404,101420.0,101410.0,1.33729928]
[1746735356589,0.02703458,101420.0,101410.0,1.34715955]
[1746735357125,0.03689417,101420.0,101410.0,1.34715955]
[1746735357569,0.02703458,101420.0,101410.0,1.44782647]
[1746735358005,0.03689417,101420.0,101410.0,1.44782647]
[1746735359320,0.04675396,101420.0,101410.0,1.44782647]
[1746735359527,0.04675396,101420.0,101410.0,1.44782657]
[1746735360118,0.04675396,101420.0,101410.0,1.45768684]
[1746735360329,0.04675396,101420.0,101410.0,1.44782657]
[1746735360510,0.04675396,101420.0,101410.0,1.45768684]
[1746735360686,0.04675396,101420.0,101410.0,1.44782657]
[1746735361080,0.04675396,101420.0,101410.0,1.10792239]
[1746735361482,0.04675406,101420.0,101410.0,1.09806202]
[1746735361690,0.04675406,101420.0,101410.0,1.10792249]
[1746735362089,0.04675406,101420.0,101410.0,1.11778286]
[1746735362593,0.04675396,101420.0,101410.0,1.12764313]
[1746735362793,0.05661385,101420.0,101410.0,1.10792239]
[1746735363019,0.04675396,101420.0,101410.0,1.10792239]